fUSD/lending_fUSD_20240517
["ID","MTS","AMOUNT","RATE_DAILY","PERIOD"]
[327227801,1715904670498,-881.23,0.00010999,2]
[327227802,1715904670508,-808.85,0.00010999,2]
[327227803,1715904670518,-808.85,0.00010999,2]
[327227804,1715904670528,-1122.87,0.00010999,2]
[327227805,1715904670537,-1122.87,0.00010999,2]
[327227806,1715904670547,-500.0,0.00010999,2]
[327227807,1715904670557,-500.0,0.00010999,2]
[327227808,1715904670566,-500.0,0.00010999,2]
[327227809,1715904670576,-500.0,0.00010999,2]
[327227810,1715904670586,-500.0,0.00010999,2]
[327227811,1715904670596,-500.0,0.00010999,2]
[327227812,1715904670606,-151.0,0.00010999,2]
[327227813,1715904670616,-296.20803219,0.00010999,2]
[327227814,1715904670626,-524.84,0.00010999,2]
[327227815,1715904670636,-1244.42,0.00010999,2]
[327227816,1715904670647,-1244.42,0.00010999,2]
[327227817,1715904670656,-151.0,0.00010999,2]
[327227818,1715904670867,-1948.51,0.00010999,2]
[327227819,1715904670877,-1948.51,0.00010999,2]
[327227820,1715904670888,-2869.7,0.00010999,2]
[327227821,1715904670897,-2869.7,0.00010999,2]
[327227822,1715904670907,-500.0,0.00010999,2]
[327227823,1715904670916,-500.0,0.00010999,2]
[327227824,1715904670926,-715.32,0.00010999,2]
[327227825,1715904670935,-657.75,0.00010999,2]
[327227826,1715904670945,-715.32,0.00010999,2]
[327227827,1715904670955,-657.75,0.00010999,2]
[327227828,1715904670964,-565.07,0.00010999,2]
[327227829,1715904670973,-565.07,0.00010999,2]
[327227830,1715904670983,-544.84,0.00010999,2]
[327227831,1715904670992,-1080.59,0.00010999,2]
[327227832,1715904671001,-544.84,0.00010999,2]
[327227833,1715904671010,-544.84,0.00010999,2]
[327227834,1715904671019,-1080.59,0.00010999,2]
[327227835,1715904671028,-544.84,0.00010999,2]
[327227836,1715904671038,-544.84,0.00010999,2]
[327227837,1715904671047,-1325.22,0.00010999,2]
[327227838,1715904671056,-1325.22,0.00010999,2]
[327227839,1715904671065,-519965.16693484,0.00011,2]
[327227840,1715904671075,-454930.0127817,0.00011,2]
[327227841,1715904671084,-200.0,0.00011,2]
[327227842,1715904671095,-151.0,0.00011,2]
[327227843,1715904671105,-197.275,0.00011,2]
[327227844,1715904671114,-151.0,0.00011,2]
[327227845,1715904671123,-151.0,0.00011,2]
[327227846,1715904671133,-151.0,0.00011,2]
[327227847,1715904671142,-151.0,0.00011,2]
[327227848,1715904671151,-152.184617,0.00011,2]
[327227849,1715904671161,-340.443738,0.00011,2]
[327227850,1715904671171,-340.443738,0.00011,2]
[327227851,1715904671180,-151.0,0.00011,2]
[327227852,1715904671189,-151.0,0.00011,2]
[327227853,1715904671199,-151.0,0.00011,2]
[327227854,1715904671208,-151.0,0.00011,2]
[327227855,1715904671217,-151.0,0.00011,2]
[327227856,1715904671227,-151.0,0.00011,2]
[327227857,1715904671235,-151.0,0.00011,2]
[327227858,1715904671245,-151.0,0.00011,2]
[327227859,1715904671254,-151.0,0.00011,2]
[327227860,1715904671263,-311.031152,0.00011,2]
[327227861,1715904671273,-311.031152,0.00011,2]
[327227862,1715904671287,-151.0,0.00011,2]
[327227863,1715904671296,-151.0,0.00011,2]
[327227864,1715904671305,-151.0,0.00011,2]
[327227865,1715904671316,-281.736233,0.00011,2]
[327227866,1715904671327,-281.736233,0.00011,2]
[327227867,1715904671336,-151.0,0.00011,2]
[327227868,1715904671349,-408.177369,0.00011,2]
[327227869,1715904671360,-151.0,0.00011,2]
[327227870,1715904671371,-408.177369,0.00011,2]
[327227871,1715904671380,-151.0,0.00011,2]
[327227872,1715904671390,-151.0,0.00011,2]
[327227873,1715904671399,-162.575913,0.00011,2]
[327227874,1715904671409,-151.0,0.00011,2]
[327227875,1715904671419,-151.0,0.00011,2]
[327227876,1715904671428,-151.0,0.00011,2]
[327227877,1715904671440,-400.65222,0.00011,2]
[327227878,1715904671450,-400.65222,0.00011,2]
[327227879,1715904671460,-231.09985,0.00011,2]
[327227880,1715904671470,-151.0,0.00011,2]
[327227881,1715904671479,-231.09985,0.00011,2]
[327227882,1715904671489,-151.0,0.00011,2]
[327227883,1715904671499,-191.026066,0.00011,2]
[327227884,1715904671508,-151.0,0.00011,2]
[327227885,1715904671518,-206.076908,0.00011,2]
[327227886,1715904671528,-151.0,0.00011,2]
[327227887,1715904671539,-206.076908,0.00011,2]
[327227888,1715904671549,-151.0,0.00011,2]
[327227889,1715904671558,-299.891693,0.00011,2]
[327227890,1715904671568,-299.891693,0.00011,2]
[327227891,1715904671577,-340.157102,0.00011,2]
[327227892,1715904671588,-371.518773,0.00011,2]
[327227893,1715904671600,-151.0,0.00011,2]
[327227894,1715904671609,-340.157102,0.00011,2]
[327227895,1715904671618,-371.518773,0.00011,2]
[327227896,1715904671627,-151.0,0.00011,2]
[327227897,1715904671636,-151.0,0.00011,2]
[327227898,1715904671645,-151.0,0.00011,2]
[327227899,1715904671655,-151.0,0.00011,2]
[327227900,1715904671665,-151.0,0.00011,2]
[327227901,1715904671675,-151.0,0.00011,2]
[327227902,1715904671684,-5260.107016,0.00011,2]
[327227903,1715904671694,-5260.107016,0.00011,2]
[327227904,1715904671704,-151.0,0.00011,2]
[327227905,1715904671713,-253.439729,0.00011,2]
[327227906,1715904671723,-253.439729,0.00011,2]
[327227907,1715904671733,-1169.583249,0.00011,2]
[327227908,1715904671742,-1169.583249,0.00011,2]
[327227909,1715904671752,-205.624906,0.00011,2]
[327227910,1715904671762,-151.0,0.00011,2]
[327227911,1715904671773,-210.447446,0.00011,2]
[327227912,1715904671783,-269.43582417,0.00011,2]
[327227913,1715904671793,-151.0,0.00011,2]
[327227914,1715904671802,-151.0,0.00011,2]
[327227915,1715904671812,-600.0,0.00011004,2]
[327227916,1715904671822,-1188.10655167,0.00011044,2]
[327227917,1715904671831,-157.051709,0.00011048,2]
[327227918,1715904671843,-10000.0,0.00011049,2]
[327227919,1715904671852,-500.0,0.00011074,2]
[327227920,1715904671861,-500.0,0.00011074,2]
[327227921,1715904671871,-500.0,0.00011074,2]
[327227922,1715904671880,-500.0,0.00011074,2]
[327227923,1715904671890,-500.0,0.00011074,2]
[327227924,1715904671900,-500.0,0.00011074,2]
[327227925,1715904671910,-657.31,0.00011074,2]
[327227926,1715904671919,-500.0,0.00011074,2]
[327227927,1715904671929,-500.0,0.00011074,2]
[327227928,1715904671939,-500.0,0.00011074,2]
[327227929,1715904671948,-566.78,0.00011074,2]
[327227930,1715904671958,-226.72,0.00011074,2]
[327227931,1715904671967,-659.51,0.00011074,2]
[327227932,1715904671977,-178.92,0.00011074,2]
[327227933,1715904671988,-626.67,0.00011074,2]
[327227934,1715904671997,-500.0,0.00011074,2]
[327227935,1715904672006,-500.0,0.00011074,2]
[327227936,1715904672016,-1761.79,0.00011074,2]
[327227937,1715904672026,-614.68,0.00011074,2]
[327227938,1715904672035,-500.0,0.00011074,2]
[327227939,1715904672045,-500.0,0.00011074,2]
[327227940,1715904672054,-681.98,0.00011074,2]
[327227941,1715904672064,-500.0,0.00011074,2]
[327227942,1715904672073,-2351.13,0.00011074,2]
[327227943,1715904672083,-1703.41,0.00011074,2]
[327227944,1715904672092,-500.0,0.00011074,2]
[327227945,1715904672102,-500.0,0.00011074,2]
[327227946,1715904672111,-500.0,0.00011074,2]
[327227947,1715904672120,-891.15,0.00011074,2]
[327227948,1715904672130,-973.78,0.00011074,2]
[327227949,1715904672140,-500.0,0.00011074,2]
[327227950,1715904672150,-1299.05,0.00011074,2]
[327227951,1715904672159,-2217.31,0.00011074,2]
[327227952,1715904672168,-4206.34,0.00011074,2]
[327227953,1715904672178,-500.0,0.00011074,2]
[327227954,1715904672188,-500.0,0.00011074,2]
[327227955,1715904672198,-4692.96,0.00011074,2]
[327227956,1715904672206,-501.19,0.00011074,2]
[327227957,1715904672216,-587.41,0.00011074,2]
[327227958,1715904672227,-500.0,0.00011074,2]
[327227959,1715904672237,-618.3,0.00011074,2]
[327227960,1715904672249,-500.0,0.00011074,2]
[327227961,1715904672258,-5079.71,0.00011074,2]
[327227962,1715904672268,-500.0,0.00011074,2]
[327227963,1715904672279,-500.0,0.00011074,2]
[327227964,1715904672289,-3035.17,0.00011074,2]
[327227965,1715904672298,-20127.94,0.00011074,2]
[327227966,1715904672309,-2062.09,0.00011074,2]
[327227967,1715904672319,-11260.35,0.00011074,2]
[327227968,1715904672329,-1773.38,0.00011074,2]
[327227969,1715904672340,-500.0,0.00011074,2]
[327227970,1715904672351,-500.0,0.00011074,2]
[327227971,1715904672361,-12891.66,0.00011074,2]
[327227972,1715904672370,-500.0,0.00011074,2]
[327227973,1715904672380,-500.0,0.00011074,2]
[327227974,1715904672389,-500.0,0.00011074,2]
[327227975,1715904672399,-500.0,0.00011074,2]
[327227976,1715904672409,-502.09,0.00011074,2]
[327227977,1715904672419,-4074.46,0.00011074,2]
[327227978,1715904672428,-538.17,0.00011074,2]
[327227979,1715904672437,-3836.13,0.00011074,2]
[327227980,1715904672447,-500.0,0.00011074,2]
[327227981,1715904672457,-500.0,0.00011074,2]
[327227982,1715904672466,-500.0,0.00011074,2]
[327227983,1715904672475,-500.0,0.00011074,2]
[327227984,1715904672484,-509.47,0.00011074,2]
[327227985,1715904672494,-500.0,0.00011074,2]
[327227986,1715904672503,-500.0,0.00011074,2]
[327227987,1715904672513,-9312.62,0.00011074,2]
[327227988,1715904672522,-757.86,0.00011074,2]
[327227989,1715904672531,-500.0,0.00011074,2]
[327227990,1715904672541,-918.11,0.00011074,2]
[327227991,1715904672550,-546.39745312,0.00011074,2]
[327227992,1715904672559,-500.0,0.00011074,2]
[327227993,1715904672569,-3915.77,0.00011074,2]
[327227994,1715904672578,-500.0,0.00011074,2]
[327227995,1715904672588,-547.49,0.00011074,2]
[327227996,1715904672599,-500.0,0.00011074,2]
[327227997,1715904672609,-500.0,0.00011074,2]
[327227998,1715904672619,-632.41,0.00011074,2]
[327227999,1715904672627,-500.0,0.00011074,2]
[327228000,1715904672637,-549.08,0.00011074,2]
[327228001,1715904672647,-500.0,0.00011074,2]
[327228002,1715904672656,-505.96,0.00011074,2]
[327228003,1715904672666,-634.34,0.00011074,2]
[327228004,1715904672675,-500.0,0.00011074,2]
[327228005,1715904672685,-327.56,0.00011074,2]
[327228006,1715904672695,-1643.75,0.00011074,2]
[327228007,1715904672705,-967.47,0.00011074,2]
[327228008,1715904672714,-500.0,0.00011074,2]
[327228009,1715904672724,-891.94,0.00011074,2]
[327228010,1715904672733,-1749.16,0.00011074,2]
[327228011,1715904672743,-795.51,0.00011074,2]
[327228012,1715904672753,-500.0,0.00011074,2]
[327228013,1715904672762,-503.69,0.00011074,2]
[327228014,1715904672772,-500.0,0.00011074,2]
[327228015,1715904672781,-1563.4,0.00011074,2]
[327228016,1715904672791,-2015.32,0.00011074,2]
[327228017,1715904672800,-837.85,0.00011074,2]
[327228018,1715904672810,-500.0,0.00011074,2]
[327228019,1715904672819,-684.95,0.00011074,2]
[327228020,1715904672829,-1942.94,0.00011074,2]
[327228021,1715904672839,-1169.583249,0.00011074,2]
[327228022,1715904672850,-500.0,0.00011074,2]
[327228023,1715904672859,-1169.583249,0.00011074,2]
[327228024,1715904672869,-628.65,0.00011074,2]
[327228025,1715904672878,-1197.84,0.00011074,2]
[327228026,1715904672887,-500.0,0.00011074,2]
[327228027,1715904672897,-500.0,0.00011074,2]
[327228028,1715904672907,-1893.0,0.00011074,2]
[327228029,1715904672916,-2008.94,0.00011074,2]
[327228030,1715904672926,-948.01,0.00011074,2]
[327228031,1715904672936,-500.0,0.00011074,2]
[327228032,1715904672945,-500.0,0.00011074,2]
[327228033,1715904672955,-2224.23,0.00011074,2]
[327228034,1715904672964,-1439.96,0.00011074,2]
[327228035,1715904672974,-1535.96,0.00011074,2]
[327228036,1715904672983,-808.85,0.00011074,2]
[327228037,1715904672992,-1122.87,0.00011074,2]
[327228038,1715904673002,-500.0,0.00011074,2]
[327228039,1715904673011,-500.0,0.00011074,2]
[327228040,1715904673021,-151.0,0.00011074,2]
[327228041,1715904673030,-1244.42,0.00011074,2]
[327228042,1715904673039,-1948.51,0.00011074,2]
[327228043,1715904673049,-2869.7,0.00011074,2]
[327228044,1715904673059,-715.32,0.00011074,2]
[327228045,1715904673069,-657.75,0.00011074,2]
[327228046,1715904673078,-565.07,0.00011074,2]
[327228047,1715904673088,-544.84,0.00011074,2]
[327228048,1715904673098,-1325.22,0.00011074,2]
[327228049,1715904673107,-500.0,0.00011075,2]
[327228050,1715904673116,-500.0,0.00011075,2]
[327228051,1715904673126,-500.0,0.00011075,2]
[327228052,1715904673136,-500.0,0.00011075,2]
[327228053,1715904673145,-500.0,0.00011075,2]
[327228054,1715904673155,-500.0,0.00011075,2]
[327228055,1715904673164,-500.0,0.00011075,2]
[327228056,1715904673174,-700.17,0.00011075,2]
[327228057,1715904673184,-500.0,0.00011075,2]
[327228058,1715904673193,-500.0,0.00011075,2]
[327228059,1715904673203,-500.0,0.00011075,2]
[327228060,1715904673212,-500.0,0.00011075,2]
[327228061,1715904673222,-500.0,0.00011075,2]
[327228062,1715904673231,-500.0,0.00011075,2]
[327228063,1715904673290,-521.19,0.00011075,2]
[327228064,1715904673299,-586.47,0.00011075,2]
[327228065,1715904673308,-637.27,0.00011075,2]
[327228066,1715904673318,-500.0,0.00011075,2]
[327228067,1715904673328,-500.0,0.00011075,2]
[327228068,1715904673337,-500.0,0.00011075,2]
[327228069,1715904673348,-500.0,0.00011075,2]
[327228070,1715904673359,-647.28,0.00011075,2]
[327228071,1715904673369,-500.0,0.00011075,2]
[327228072,1715904673378,-504.62,0.00011075,2]
[327228073,1715904673387,-366.90675217,0.00011075,2]
[327228074,1715904673396,-500.0,0.00011075,2]
[327228075,1715904673406,-874.28,0.00011075,2]
[327228076,1715904673415,-661.12,0.00011075,2]
[327228077,1715904673425,-380.4,0.00011075,2]
[327228078,1715904673434,-578.32,0.00011075,2]
[327228079,1715904673444,-845.42,0.00011075,2]
[327228080,1715904673453,-254.98,0.00011075,2]
[327228081,1715904673462,-538.66,0.00011075,2]
[327228082,1715904673471,-1082.09,0.00011075,2]
[327228083,1715904673481,-508.41,0.00011075,2]
[327228084,1715904673490,-500.0,0.00011075,2]
[327228085,1715904673500,-1031.65,0.00011075,2]
[327228086,1715904673509,-1427.85,0.00011075,2]
[327228087,1715904673519,-439.66,0.00011075,2]
[327228088,1715904673528,-328.61,0.00011075,2]
[327228089,1715904673538,-995.08,0.00011075,2]
[327228090,1715904673548,-528.38,0.00011075,2]
[327228091,1715904673558,-500.0,0.00011075,2]
[327228092,1715904673567,-1474.34,0.00011075,2]
[327228093,1715904673576,-908.45,0.00011075,2]
[327228094,1715904673586,-509.62,0.00011075,2]
[327228095,1715904673596,-637.38,0.00011075,2]
[327228096,1715904673605,-391.24,0.00011075,2]
[327228097,1715904673614,-689.31,0.00011075,2]
[327228098,1715904673624,-923.77,0.00011075,2]
[327228099,1715904673632,-500.0,0.00011075,2]
[327228100,1715904673642,-2970.16,0.00011075,2]
[327228101,1715904673651,-1123.95,0.00011075,2]
[327228102,1715904673661,-1386.6,0.00011075,2]
[327228103,1715904673671,-521.55,0.00011075,2]
[327228104,1715904673681,-1926.5,0.00011075,2]
[327228105,1715904673690,-500.0,0.00011075,2]
[327228106,1715904673700,-500.0,0.00011075,2]
[327228107,1715904673709,-500.0,0.00011075,2]
[327228108,1715904673719,-466.81,0.00011075,2]
[327228109,1715904673728,-1097.52,0.00011075,2]
[327228110,1715904673737,-528.06,0.00011075,2]
[327228111,1715904673746,-790.52,0.00011075,2]
[327228112,1715904673756,-558.16,0.00011075,2]
[327228113,1715904673765,-500.0,0.00011075,2]
[327228114,1715904673775,-500.0,0.00011075,2]
[327228115,1715904673784,-500.0,0.00011075,2]
[327228116,1715904673793,-662.4,0.00011075,2]
[327228117,1715904673803,-500.0,0.00011075,2]
[327228118,1715904673812,-537.77,0.00011075,2]
[327228119,1715904673822,-500.0,0.00011075,2]
[327228120,1715904673831,-565.41,0.00011075,2]
[327228121,1715904673840,-500.0,0.00011075,2]
[327228122,1715904673851,-2630.07,0.00011075,2]
[327228123,1715904673860,-743.58,0.00011075,2]
[327228124,1715904673870,-500.0,0.00011075,2]
[327228125,1715904673879,-546.74,0.00011075,2]
[327228126,1715904673889,-1570.45,0.00011075,2]
[327228127,1715904673898,-747.83,0.00011075,2]
[327228128,1715904673907,-815.21,0.00011075,2]
[327228129,1715904673917,-768.75,0.00011075,2]
[327228130,1715904673926,-1799.23,0.00011075,2]
[327228131,1715904673936,-183.4310685,0.00011075,2]
[327228132,1715904673945,-500.0,0.00011075,2]
[327228133,1715904673955,-313.16427542,0.00011075,2]
[327228134,1715904673964,-715.4,0.00011075,2]
[327228135,1715904673973,-559.86,0.00011075,2]
[327228136,1715904673983,-655.48,0.00011075,2]
[327228137,1715904673992,-530.03,0.00011075,2]
[327228138,1715904674001,-500.0,0.00011075,2]
[327228139,1715904674011,-735.6,0.00011075,2]
[327228140,1715904674020,-17430.5,0.00011075,2]
[327228141,1715904674030,-762.31,0.00011075,2]
[327228142,1715904674039,-527.26,0.00011075,2]
[327228143,1715904674048,-500.0,0.00011075,2]
[327228144,1715904674058,-775.82,0.00011075,2]
[327228145,1715904674067,-500.0,0.00011075,2]
[327228146,1715904674076,-520.31,0.00011075,2]
[327228147,1715904674085,-500.0,0.00011075,2]
[327228148,1715904674096,-500.0,0.00011075,2]
[327228149,1715904674105,-1967.2,0.00011075,2]
[327228150,1715904674114,-500.0,0.00011075,2]
[327228151,1715904674124,-1599.53,0.00011075,2]
[327228152,1715904674133,-500.0,0.00011075,2]
[327228153,1715904674143,-611.8,0.00011075,2]
[327228154,1715904674152,-918.96,0.00011075,2]
[327228155,1715904674161,-387.52846918,0.00011075,2]
[327228156,1715904674171,-815.39,0.00011075,2]
[327228157,1715904674181,-824.34,0.00011075,2]
[327228158,1715904674190,-752.46,0.00011075,2]
[327228159,1715904674200,-500.0,0.00011075,2]
[327228160,1715904674209,-500.0,0.00011075,2]
[327228161,1715904674218,-2739.75,0.00011075,2]
[327228162,1715904674228,-500.0,0.00011075,2]
[327228163,1715904674238,-151.0,0.00011075,2]
[327228164,1715904674247,-500.0,0.00011075,2]
[327228165,1715904674257,-2115.13,0.00011075,2]
[327228166,1715904674266,-1202.26,0.00011075,2]
[327228167,1715904674277,-151.0,0.00011075,2]
[327228168,1715904674288,-5079.71,0.00011075,2]
[327228169,1715904674297,-556.76,0.00011075,2]
[327228170,1715904674306,-500.0,0.00011075,2]
[327228171,1715904674316,-151.0,0.00011075,2]
[327228172,1715904674326,-1941.35,0.00011075,2]
[327228173,1715904674335,-151.0,0.00011075,2]
[327228174,1715904674347,-2469.42,0.00011075,2]
[327228175,1715904674360,-1363.06,0.00011075,2]
[327228176,1715904674369,-1004.67,0.00011075,2]
[327228177,1715904674378,-299.891693,0.00011075,2]
[327228178,1715904674388,-1773.38,0.00011075,2]
[327228179,1715904674396,-299.891693,0.00011075,2]
[327228180,1715904674406,-340.157102,0.00011075,2]
[327228181,1715904674415,-1645.85,0.00011075,2]
[327228182,1715904674424,-151.0,0.00011075,2]
[327228183,1715904674433,-340.157102,0.00011075,2]
[327228184,1715904674442,-990.35,0.00011075,2]
[327228185,1715904674451,-151.0,0.00011075,2]
[327228186,1715904674461,-1615.88,0.00011075,2]
[327228187,1715904674470,-752.39,0.00011075,2]
[327228188,1715904674479,-151.0,0.00011075,2]
[327228189,1715904674488,-1831.98,0.00011075,2]
[327228190,1715904674498,-500.0,0.00011075,2]
[327228191,1715904674508,-2529.74,0.00011075,2]
[327228192,1715904674520,-3836.13,0.00011075,2]
[327228193,1715904674529,-151.0,0.00011075,2]
[327228194,1715904674540,-151.0,0.00011075,2]
[327228195,1715904674550,-6262.71,0.00011075,2]
[327228196,1715904674562,-535.78619795,0.00011075,2]
[327228197,1715904674572,-151.0,0.00011075,2]
[327228198,1715904674582,-1703.91,0.00011075,2]
[327228199,1715904674592,-516.75,0.00011075,2]
[327228200,1715904674602,-500.0,0.00011075,2]
[327228201,1715904674611,-500.0,0.00011075,2]
[327228202,1715904674620,-151.0,0.00011075,2]
[327228203,1715904674628,-5260.107016,0.00011075,2]
[327228204,1715904674637,-695.09,0.00011075,2]
[327228205,1715904674646,-1199.7,0.00011075,2]
[327228206,1715904674655,-5260.107016,0.00011075,2]
[327228207,1715904674665,-1921.67,0.00011075,2]
[327228208,1715904674674,-500.0,0.00011075,2]
[327228209,1715904674683,-151.0,0.00011075,2]
[327228210,1715904674692,-549.08,0.00011075,2]
[327228211,1715904674701,-962.41,0.00011075,2]
[327228212,1715904674710,-2730.67,0.00011075,2]
[327228213,1715904674720,-7815.15,0.00011075,2]
[327228214,1715904674729,-967.47,0.00011075,2]
[327228215,1715904674738,-15488.56,0.00011075,2]
[327228216,1715904674748,-589.2,0.00011075,2]
[327228217,1715904674757,-606.02,0.00011075,2]
[327228218,1715904674766,-598.49,0.00011075,2]
[327228219,1715904674776,-1373.26,0.00011075,2]
[327228220,1715904674785,-253.439729,0.00011075,2]
[327228221,1715904674794,-1371.34,0.00011075,2]
[327228222,1715904674803,-253.439729,0.00011075,2]
[327228223,1715904674813,-684.95,0.00011075,2]
[327228224,1715904674822,-3004.8,0.00011075,2]
[327228225,1715904674831,-702.57,0.00011075,2]
[327228226,1715904674841,-544.47,0.00011075,2]
[327228227,1715904674852,-948.01,0.00011075,2]
[327228228,1715904674863,-635.05,0.00011075,2]
[327228229,1715904674873,-4601.48,0.00011075,2]
[327228230,1715904674882,-881.23,0.00011075,2]
[327228231,1715904674892,-500.0,0.00011075,2]
[327228232,1715904674902,-500.0,0.00011075,2]
[327228233,1715904674911,-500.0,0.00011075,2]
[327228234,1715904674922,-500.0,0.00011075,2]
[327228235,1715904674932,-657.75,0.00011075,2]
[327228236,1715904674942,-500.0,0.00011075,2]
[327228237,1715904674952,-1080.59,0.00011075,2]
[327228238,1715904674961,-544.84,0.00011075,2]
[327228239,1715904674971,-2328.8843,0.00011076,2]
[327228240,1715904674981,-74352.6419,0.00011076,2]
[327228241,1715904674991,-524.89,0.00011078,2]
[327228242,1715904675000,-918.11,0.00011078,2]
[327228243,1715904675009,-500.0,0.00011078,2]
[327228244,1715904675019,-500.0,0.00011078,2]
[327228245,1715904675028,-1643.75,0.00011078,2]
[327228246,1715904675037,-1749.16,0.00011078,2]
[327228247,1715904675046,-500.0,0.00011078,2]
[327228248,1715904675056,-1563.4,0.00011078,2]
[327228249,1715904675066,-1942.94,0.00011078,2]
[327228250,1715904675075,-500.0,0.00011078,2]
[327228251,1715904675084,-1893.0,0.00011078,2]
[327228252,1715904675094,-2224.23,0.00011078,2]
[327228253,1715904675103,-1122.87,0.00011078,2]
[327228254,1715904675112,-1244.42,0.00011078,2]
[327228255,1715904675121,-544.84,0.00011078,2]
[327228256,1715904675130,-4206.34,0.00011079,2]
[327228257,1715904675140,-4206.34,0.00011079,2]
[327228258,1715904675148,-4206.34,0.00011079,2]
[327228259,1715904675157,-4206.34,0.00011079,2]
[327228260,1715904675167,-4206.34,0.00011079,2]
[327228261,1715904675175,-501.19,0.00011079,2]
[327228262,1715904675185,-501.19,0.00011079,2]
[327228263,1715904675194,-501.19,0.00011079,2]
[327228264,1715904675203,-501.19,0.00011079,2]
[327228265,1715904675212,-501.19,0.00011079,2]
[327228266,1715904675222,-500.0,0.00011079,2]
[327228267,1715904675231,-500.0,0.00011079,2]
[327228268,1715904675240,-558.99,0.00011079,2]
[327228269,1715904675250,-2062.09,0.00011079,2]
[327228270,1715904675261,-2062.09,0.00011079,2]
[327228271,1715904675274,-2062.09,0.00011079,2]
[327228272,1715904675285,-2062.09,0.00011079,2]
[327228273,1715904675294,-2062.09,0.00011079,2]
[327228274,1715904675304,-500.0,0.00011079,2]
[327228275,1715904675314,-500.0,0.00011079,2]
[327228276,1715904675323,-500.0,0.00011079,2]
[327228277,1715904675333,-500.0,0.00011079,2]
[327228278,1715904675341,-500.0,0.00011079,2]
[327228279,1715904675353,-918.11,0.00011079,2]
[327228280,1715904675362,-918.11,0.00011079,2]
[327228281,1715904675372,-918.11,0.00011079,2]
[327228282,1715904675381,-918.11,0.00011079,2]
[327228283,1715904675390,-918.11,0.00011079,2]
[327228284,1715904675398,-918.11,0.00011079,2]
[327228285,1715904675407,-918.11,0.00011079,2]
[327228286,1715904675417,-500.0,0.00011079,2]
[327228287,1715904675426,-918.11,0.00011079,2]
[327228288,1715904675435,-500.0,0.00011079,2]
[327228289,1715904675445,-500.0,0.00011079,2]
[327228290,1715904675454,-918.11,0.00011079,2]
[327228291,1715904675464,-918.11,0.00011079,2]
[327228292,1715904675473,-500.0,0.00011079,2]
[327228293,1715904675483,-918.14,0.00011079,2]
[327228294,1715904675492,-500.0,0.00011079,2]
[327228295,1715904675501,-500.0,0.00011079,2]
[327228296,1715904675510,-500.0,0.00011079,2]
[327228297,1715904675519,-500.0,0.00011079,2]
[327228298,1715904675529,-500.0,0.00011079,2]
[327228299,1715904675538,-632.41,0.00011079,2]
[327228300,1715904675547,-151.43982557,0.00011079,2]